bitfinex/quotes_SOLUSD_20241115
["timestamp","ask_amount","ask_price","bid_price","bid_amount"]
[1731683641160,2.3941,208.85,208.82,0.47888133]
[1731683641371,24.4137146,208.85,208.82,0.47888133]
[1731683641697,22.0196146,208.84,208.82,0.47888133]
[1731683642455,2.3942,208.83,208.82,0.47888133]
[1731683643262,2.394,208.85,208.82,0.47888133]
[1731683643781,2.3939,208.87,208.83,22.0196146]
[1731683643956,2.3939,208.87,208.82,22.49849593]
[1731683644277,22.0196146,208.92,208.85,22.0196146]
[1731683644453,22.0196146,208.9,208.84,22.0196146]
[1731683644657,22.0196146,208.89,208.82,22.49849593]
[1731683644980,8.3759,208.93,208.82,17.23958133]
[1731683644981,24.4127146,208.93,208.82,17.23958133]
[1731683645168,2.3931,208.93,208.88,22.0196146]
[1731683645367,2.3931,208.93,208.82,17.23958133]
[1731683645368,22.0196146,208.9,208.83,22.0196146]
[1731683645582,2.3931,208.93,208.82,5.26748133]
[1731683645762,8.3759,208.93,208.82,0.47888133]
[1731683645962,0.09367462,208.9,208.82,0.47888133]
[1731683646170,22.0196146,208.83,208.82,0.47888133]
[1731683646376,24.4138146,208.83,208.82,0.47888133]
[1731683646790,0.2,208.81,208.79,0.09367462]
[1731683646956,22.0196146,208.8,208.79,0.09367462]
[1731683647160,22.0196146,208.8,208.64,31.8860354]
[1731683647161,0.1,208.77,208.64,41.92375]
[1731683647385,0.1,208.77,208.63,0.2854826]
[1731683647557,0.1,208.77,208.63,5.0784826]
[1731683647755,22.0196146,208.69,208.63,0.2854826]
[1731683648068,22.0196146,208.72,208.66,22.0196146]
[1731683648376,22.0196146,208.73,208.66,22.0196146]
[1731683648576,24.4149146,208.74,208.68,22.0196146]
[1731683648878,22.0196146,208.76,208.69,22.0196146]
[1731683649083,22.0196146,208.73,208.66,22.0196146]
[1731683649262,22.0196146,208.73,208.67,22.0196146]
[1731683649665,22.0196146,208.76,208.69,22.0196146]
[1731683649868,22.0196146,208.73,208.67,22.0196146]
[1731683650066,22.0196146,208.72,208.66,22.0196146]
[1731683650262,22.0196146,208.74,208.68,22.0196146]
[1731683650473,24.4149146,208.74,208.68,22.0196146]
[1731683650696,22.0196146,208.76,208.7,22.0196146]
[1731683650855,22.0196146,208.75,208.69,22.0196146]
[1731683651069,22.0196146,208.75,208.66,16.7735]
[1731683651070,22.0196146,208.73,208.67,22.0196146]
[1731683651259,22.0196146,208.73,208.66,34.0008146]
[1731683651761,22.0196146,208.75,208.68,22.0196146]
[1731683652276,22.0196146,208.74,208.68,22.0196146]
[1731683652781,2.3954,208.73,208.68,22.0196146]
[1731683653167,2.3954,208.73,208.67,19.04]
[1731683653168,22.0196146,208.78,208.72,22.0196146]
[1731683653368,24.4142146,208.8,208.73,22.0196146]
[1731683653568,24.4142146,208.8,208.74,22.0196146]
[1731683653784,24.4142146,208.8,208.73,22.0196146]
[1731683654097,22.0196146,208.81,208.75,22.0196146]
[1731683654693,2.3944,208.82,208.77,22.0196146]
[1731683654993,24.4138146,208.84,208.77,22.0196146]
[1731683655365,22.0196146,208.81,208.74,22.0196146]
[1731683655573,22.0196146,208.76,208.69,22.0196146]
[1731683655793,22.0196146,208.78,208.71,22.0196146]
[1731683655989,0.09367462,208.83,208.72,22.0196146]
[1731683655990,22.0196146,208.79,208.72,22.0196146]
[1731683656268,22.0196146,208.81,208.74,22.0196146]
[1731683656474,22.0196146,208.78,208.72,22.0196146]
[1731683656726,22.0196146,208.78,208.71,22.0196146]
[1731683656727,2.3949,208.77,208.71,22.0196146]
[1731683657072,2.3949,208.77,208.64,16.7752]
[1731683657073,22.0196146,208.79,208.72,22.0196146]
[1731683657389,22.0196146,208.97,208.8,0.12549]
[1731683657587,22.0196146,208.98,208.91,22.0196146]
[1731683657895,22.0196146,208.98,208.8,22.1451046]
[1731683657896,22.0196146,208.95,208.88,22.0196146]
[1731683658102,0.1,208.95,208.74,12.6956]
[1731683658405,22.0196146,208.85,208.79,22.0196146]
[1731683658703,22.0196146,208.84,208.77,22.0196146]
[1731683658881,24.4135146,208.86,208.79,22.0196146]
[1731683659408,22.0196146,208.84,208.77,22.0196146]
[1731683659572,2.3939,208.86,208.75,22.0196146]
[1731683659573,22.0196146,208.82,208.75,22.0196146]
[1731683659779,2.3939,208.86,208.71,36.1828]
[1731683659780,22.0196146,208.81,208.74,22.0196146]
[1731683660301,22.0196146,208.79,208.72,22.0196146]
[1731683660476,22.0196146,208.83,208.76,22.0196146]
[1731683660894,2.3944,208.82,208.76,22.0196146]
[1731683661399,24.4140146,208.82,208.75,22.0196146]
[1731683661610,2.3944,208.82,208.76,22.0196146]
[1731683661774,2.3944,208.82,208.77,22.0196146]
[1731683662567,22.1196146,208.9,208.79,22.0196146]
[1731683662768,22.0196146,208.86,208.79,22.0196146]
[1731683662992,22.0196146,208.87,208.81,22.0196146]
[1731683663179,2.3936,208.89,208.85,22.0196146]
[1731683663384,2.3934,208.91,208.85,22.0196146]
[1731683663597,22.0196146,208.89,208.83,22.0196146]
[1731683663772,22.0196146,208.9,208.83,22.0196146]
[1731683663983,24.4130146,208.91,208.85,22.0196146]
[1731683664300,24.4130146,208.91,208.8,22.0196146]
[1731683664301,2.3934,208.91,208.87,22.0196146]
[1731683664510,13.2456,208.95,208.87,22.0196146]
[1731683664511,22.0196146,208.94,208.87,22.0196146]
[1731683664676,22.0196146,208.94,208.81,16.7616]
[1731683664677,2.3931,208.94,208.89,22.0196146]
[1731683664871,2.3931,208.94,208.81,16.7616]
[1731683664872,22.0196146,208.91,208.81,16.7616]
[1731683665175,22.0196146,208.91,208.84,22.0196146]
[1731683665387,22.0196146,208.92,208.85,22.0196146]
[1731683665898,22.0196146,208.9,208.83,22.0196146]
[1731683666206,24.4128146,208.92,208.85,22.0196146]
[1731683666577,22.0196146,208.9,208.83,22.0196146]
[1731683666905,2.3932,208.92,208.84,22.0196146]
[1731683666906,22.0196146,208.91,208.84,22.0196146]
[1731683667584,22.0196146,208.91,208.85,22.0196146]
[1731683667772,2.3933,208.92,208.86,22.0196146]
[1731683667987,22.0196146,208.95,208.88,22.0196146]
[1731683668190,22.0196146,208.95,208.83,16.7598]
[1731683668191,22.0196146,208.93,208.86,22.0196146]
[1731683669103,22.0196146,208.92,208.85,26.8075146]
[1731683669292,22.0196146,208.92,208.85,22.0196146]
[1731683670317,2.3933,208.91,208.86,22.0196146]
[1731683670691,2.3931,208.93,208.87,22.0196146]
[1731683671113,24.4126146,208.95,208.88,22.0196146]
[1731683671312,22.0196146,208.97,208.9,22.0196146]
[1731683671489,2.3924,208.99,208.91,22.0196146]
[1731683671689,24.4120146,208.99,208.92,22.0196146]
[1731683671906,2.3924,208.99,208.93,22.0196146]
[1731683672415,24.4119146,209.01,208.94,22.0196146]
[1731683672608,22.0196146,209.0,208.94,22.0196146]
[1731683673118,22.0196146,208.98,208.92,22.0196146]
[1731683673695,2.3923,209.01,208.86,22.0196146]
[1731683673696,22.0196146,208.93,208.86,22.0196146]
[1731683673900,22.0196146,208.88,208.81,22.0196146]
[1731683674101,22.0196146,208.89,208.82,22.0196146]
[1731683674292,22.0196146,208.91,208.84,22.0196146]
[1731683674510,0.09367462,208.94,208.83,22.0196146]
[1731683674715,22.0196146,208.85,208.79,22.0196146]
[1731683674928,22.0196146,208.83,208.77,22.0196146]
[1731683675220,22.0196146,208.82,208.76,22.0196146]
[1731683675517,22.0196146,208.85,208.78,22.0196146]
[1731683675906,22.0196146,208.87,208.81,22.0196146]
[1731683676411,2.48727462,208.89,208.83,22.0196146]
[1731683676593,22.0196146,208.88,208.82,22.0196146]
[1731683676991,2.48727462,208.89,208.84,22.0196146]
[1731683677216,22.0196146,208.88,208.81,22.0196146]
[1731683677403,2.48727462,208.89,208.76,23.776884]
[1731683677404,0.09367462,208.89,208.87,22.0196146]
[1731683677605,0.09367462,208.89,208.88,22.0196146]
[1731683678409,0.09367462,208.89,208.88,26.8070146]
[1731683679297,0.09367462,208.89,208.88,72.8290032]
[1731683680290,0.09367462,208.89,208.88,72.6035132]
[1731683680493,0.09367462,208.89,208.88,26.8070146]
[1731683682010,0.09367462,208.89,208.88,48.8266292]
[1731683682218,0.09367462,208.89,208.88,26.8070146]
[1731683682898,0.09367462,208.89,208.88,72.7035132]
[1731683683918,0.09367462,208.89,208.88,72.8290032]
[1731683684227,0.09367462,208.96,208.95,22.0196146]
[1731683684703,14.40673273,209.08,209.04,22.0196146]
[1731683684913,14.40673273,209.08,209.06,22.0196146]
[1731683685409,14.40673273,209.08,209.05,22.0196146]
[1731683685720,15.5728,209.13,209.07,22.0196146]
[1731683685905,15.5728,209.13,209.0,22.0196146]
[1731683685906,15.5728,209.13,209.08,22.0196146]
[1731683686100,22.0196146,209.09,208.99,4.7849]
[1731683686304,2.579486,209.15,208.99,4.7849]
[1731683686508,22.0196146,209.11,209.04,22.0196146]
[1731683686705,22.0196146,209.11,209.05,22.0196146]
[1731683687004,22.2084006,209.15,209.01,0.1]
[1731683687211,22.0196146,209.13,209.07,22.0196146]
[1731683687422,0.188786,209.15,209.09,22.0196146]
[1731683687719,0.188786,209.15,209.11,22.0196146]
[1731683687898,0.188786,209.15,209.12,22.0196146]
[1731683688102,0.188786,209.15,209.14,22.0196146]
[1731683690026,2.3891,209.29,209.14,38.8547146]
[1731683690324,22.0196146,209.28,209.21,22.0196146]
[1731683690528,2.3891,209.29,209.14,16.8351]
[1731683690529,22.0196146,209.26,209.2,22.0196146]
[1731683690734,22.0196146,209.27,209.2,22.0196146]
[1731683690915,22.0196146,209.28,209.21,22.0196146]
[1731683691228,24.4089146,209.27,209.2,22.0196146]
[1731683691430,22.0196146,209.28,209.21,22.0196146]
[1731683691745,24.4084146,209.31,209.24,22.0196146]
[1731683692028,22.0196146,209.3,209.23,22.0196146]
[1731683692327,22.0196146,209.29,209.22,22.0196146]
[1731683692508,24.4084146,209.31,209.24,22.0196146]
[1731683692708,24.4084146,209.31,209.25,22.0196146]
[1731683693032,22.0196146,209.31,209.25,22.0196146]
[1731683693328,15.2995,209.33,209.25,22.0196146]
[1731683693329,22.0196146,209.32,209.25,22.0196146]
[1731683693529,22.0196146,209.32,209.25,26.7984146]
[1731683693733,22.0196146,209.32,209.24,11.948]
[1731683693734,22.0196146,209.3,209.24,33.9676146]
[1731683694027,22.0196146,209.32,209.26,22.0196146]
[1731683694416,22.0196146,209.31,209.25,22.0196146]
[1731683694731,22.0196146,209.32,209.26,22.0196146]
[1731683695123,34.9305146,209.33,209.26,26.7982146]
[1731683695423,34.9305146,209.33,209.26,22.0196146]
[1731683695608,2.3886,209.33,209.28,22.0196146]
[1731683695811,22.0196146,209.32,209.25,22.0196146]
[1731683696027,22.0196146,209.3,209.23,22.0196146]
[1731683696532,22.0196146,209.32,209.25,22.0196146]
[1731683696719,22.0196146,209.29,209.22,22.0196146]
[1731683697032,22.0196146,209.27,209.2,22.0196146]
[1731683697209,22.0196146,209.27,209.19,11.9506]
[1731683697210,22.0196146,209.25,209.19,33.9702146]
[1731683697611,22.0196146,209.24,209.18,22.0196146]
[1731683697952,22.0196146,209.25,209.19,22.0196146]
[1731683698152,13.3184,209.29,209.22,22.0196146]
[1731683698153,22.0196146,209.28,209.22,22.0196146]
[1731683698452,35.3380146,209.29,209.23,22.0196146]
[1731683699039,13.3184,209.29,209.24,22.0196146]
[1731683699431,2.3889,209.3,209.24,22.0196146]
[1731683699632,2.3889,209.3,209.25,22.0196146]
[1731683700022,2.3889,209.3,209.24,22.0196146]
[1731683700644,22.0196146,209.27,209.21,22.0196146]
[1731683700841,2.3889,209.3,209.18,22.0196146]
[1731683700842,22.0196146,209.25,209.18,22.0196146]
[1731683701043,22.0196146,209.24,209.18,22.0196146]
[1731683701349,22.0196146,209.25,209.18,22.0196146]
[1731683701521,22.0196146,209.22,209.15,22.0196146]
[1731683701722,22.0196146,209.22,209.13,11.9538]
[1731683701723,22.0196146,209.21,209.14,22.0196146]
[1731683701957,2.3894,209.25,209.2,22.0196146]
[1731683702450,22.0196146,209.22,209.14,11.9537]
[1731683702624,22.0196146,209.2,209.14,33.9733146]
[1731683703143,22.0196146,209.21,209.15,22.0196146]
[1731683703352,2.3894,209.25,209.13,22.0196146]
[1731683703642,22.0196146,209.22,209.16,22.0196146]
[1731683703844,22.0196146,209.19,209.13,22.0196146]
[1731683704037,22.0196146,209.15,209.09,22.0196146]
[1731683704440,22.0196146,209.14,209.08,22.0196146]
[1731683704642,22.0196146,209.14,209.03,11.9595]
[1731683704643,22.0196146,209.13,209.06,22.0196146]
[1731683704827,22.0196146,209.07,208.95,4.7857]
[1731683705027,22.0196146,209.07,208.93,36.2384]
[1731683705028,22.0196146,209.0,208.93,15.2054]
[1731683705224,23.776884,209.08,208.84,32.9984]
[1731683705225,22.0196146,208.99,208.92,22.0196146]
[1731683705529,24.027864,209.08,208.88,16.8558]
[1731683705743,0.25098,209.08,208.9,7.46693924]
[1731683706129,2.3915,209.07,208.91,16.7535]
[1731683706326,2.3915,209.07,208.92,20.1]
[1731683706550,12.5584,209.09,209.04,22.0196146]
[1731683706551,14.9497,209.09,209.04,22.0196146]
[1731683706754,14.9497,209.09,208.92,26.47310997]
[1731683706755,22.0196146,209.05,208.99,22.0196146]
[1731683707043,22.0196146,209.03,208.97,22.0196146]
[1731683707261,22.0196146,209.03,208.9,29.48655384]
[1731683707262,22.0196146,209.03,208.96,22.0196146]
[1731683708126,2.3921,209.02,208.97,22.0196146]
[1731683708427,24.4116146,209.03,208.97,22.0196146]
[1731683708939,2.392,209.03,208.98,22.0196146]
[1731683709751,22.0196146,209.04,208.97,22.0196146]
[1731683710355,22.0196146,209.05,208.99,22.0196146]
[1731683710557,0.12549,209.08,208.91,16.7534]
[1731683710558,22.0196146,209.04,208.97,22.0196146]
[1731683710852,0.12549,209.08,208.86,0.1]
[1731683710853,0.12549,209.03,208.88,4.7873]
[1731683711048,22.0196146,208.99,208.92,22.0196146]
[1731683711239,22.0196146,208.99,208.93,22.0196146]
[1731683711438,22.0196146,209.01,208.94,22.0196146]
[1731683711733,8.3703,209.07,208.88,16.8558]
[1731683711734,22.0196146,209.06,208.99,22.0196146]
[1731683711941,22.0196146,209.05,208.99,22.0196146]
[1731683712139,0.09367462,209.06,208.88,16.7558]
[1731683712336,0.09367462,209.06,208.95,22.0196146]
[1731683712726,2.3917,209.05,208.95,22.0196146]
[1731683712947,22.0196146,209.01,208.95,22.0196146]
[1731683713355,2.3917,209.05,208.99,22.0196146]
[1731683713651,14.9497,209.09,209.04,22.0196146]
[1731683713954,22.0196146,209.08,209.01,22.0196146]
[1731683714160,14.9497,209.09,208.97,23.776884]
[1731683714354,12.5584,209.09,208.97,23.776884]
[1731683714738,15.7004,209.15,209.0,4.7846]
[1731683714937,15.7004,209.15,209.02,20.0]
[1731683714938,13.3097,209.15,209.02,20.0]
[1731683715135,12.5584,209.2,209.06,20.0]
[1731683715329,13.3097,209.21,209.17,22.0196146]
[1731683715860,13.3097,209.21,209.19,22.0196146]
[1731683716040,15.699,209.27,209.1,0.1]
[1731683716238,15.699,209.27,209.21,22.0196146]
[1731683716439,24.4089146,209.27,209.2,22.0196146]
[1731683716636,2.3893,209.27,209.23,22.0196146]
[1731683716956,12.7434,209.28,209.23,22.0196146]
[1731683717259,15.1325,209.28,209.22,22.0196146]
[1731683717638,15.1325,209.28,209.13,11.9539]
[1731683717639,12.7434,209.28,209.26,22.0196146]
[1731683717843,85.5349306,209.34,209.27,22.0196146]
[1731683718035,12.3252,209.34,209.3,22.0196146]
[1731683718235,12.3252,209.34,209.31,22.0196146]
[1731683718657,0.4742686,209.36,209.32,22.0196146]
[1731683719039,0.4742686,209.36,209.34,22.0196146]
[1731683719241,0.4742686,209.36,209.3,22.0196146]
[1731683719436,2.48197462,209.35,209.29,22.0196146]
[1731683719636,24.50158922,209.35,209.29,22.0196146]
[1731683719838,24.50158922,209.35,209.2,22.0196146]
[1731683719839,22.0196146,209.33,209.26,22.0196146]
[1731683720066,22.0196146,209.32,209.26,22.0196146]
[1731683720248,22.0196146,209.29,209.16,16.7331]
[1731683720451,22.0196146,209.31,209.25,22.0196146]
[1731683720760,2.58197462,209.35,209.3,22.0196146]
[1731683720761,0.09367462,209.35,209.3,22.0196146]
[1731683720967,22.0196146,209.35,209.28,22.0196146]
[1731683721470,22.4938832,209.36,209.29,22.0196146]
[1731683722138,22.4938832,209.36,209.3,22.0196146]
[1731683722647,0.09367462,209.34,209.28,22.0196146]
[1731683722850,22.0196146,209.31,209.25,22.0196146]
[1731683723245,22.0196146,209.33,209.27,22.0196146]
[1731683723650,0.09367462,209.34,209.29,22.0196146]
[1731683723960,24.8820832,209.36,209.29,22.0196146]
[1731683724139,22.4938832,209.36,209.3,22.0196146]
[1731683724337,0.4742686,209.36,209.31,22.0196146]
[1731683724640,0.4742686,209.36,209.32,22.0196146]
[1731683724835,0.4742686,209.36,209.24,0.1]
[1731683724836,0.4742686,209.36,209.33,22.0196146]
[1731683725145,0.4742686,209.36,209.29,22.0196146]
[1731683725146,22.0196146,209.35,209.29,22.0196146]
[1731683725460,2.8625686,209.36,209.32,22.0196146]
[1731683725461,0.4742686,209.36,209.32,22.0196146]
[1731683725758,0.4742686,209.36,209.31,22.0196146]
[1731683725960,0.4742686,209.36,209.32,22.0196146]
[1731683726455,0.4742686,209.36,209.23,20.1]
[1731683726456,0.4742686,209.36,209.31,22.0196146]
[1731683726635,0.4742686,209.36,209.34,22.0196146]
[1731683726834,0.4742686,209.36,209.33,22.0196146]
[1731683727066,22.0196146,209.35,209.29,22.0196146]
[1731683727239,22.0196146,209.35,209.28,22.0196146]
[1731683727447,22.4938832,209.36,209.3,22.0196146]
[1731683727662,0.4742686,209.36,209.3,22.0196146]
[1731683727955,0.4742686,209.36,209.31,22.0196146]
[1731683728346,22.4938832,209.36,209.3,22.0196146]
[1731683728538,0.4742686,209.36,209.31,22.0196146]
[1731683728763,0.21916462,209.35,209.29,22.0196146]
[1731683728955,0.12549,209.29,209.22,11.9488]
[1731683729160,22.0196146,209.27,209.22,11.9488]
[1731683729365,0.12549,209.33,209.23,22.0196146]
[1731683729664,0.12549,209.34,209.22,11.9488]
[1731683729959,22.0196146,209.29,209.23,22.0196146]
[1731683730163,22.0196146,209.3,209.23,22.0196146]
[1731683730345,22.0196146,209.3,209.24,22.0196146]
[1731683730541,22.0196146,209.32,209.25,22.0196146]
[1731683730750,22.0196146,209.32,209.2,22.0196146]
[1731683730751,22.0196146,209.32,209.26,22.0196146]
[1731683730966,22.0196146,209.31,209.25,22.0196146]
[1731683731258,22.0196146,209.32,209.25,22.0196146]
[1731683731449,2.3885,209.33,209.23,16.7278]
[1731683731450,22.0196146,209.29,209.23,16.7278]
[1731683731639,22.0196146,209.25,209.18,33.9706146]
[1731683732040,22.0196146,209.26,209.2,22.0196146]
[1731683732256,0.25098,209.34,209.25,22.0196146]
[1731683732467,22.0196146,209.3,209.24,22.0196146]
[1731683732673,22.0196146,209.29,209.22,22.0196146]
[1731683732870,22.0196146,209.3,209.23,22.0196146]
[1731683733166,0.09367462,209.34,209.2,4.78]
[1731683733167,22.0196146,209.29,209.22,22.0196146]
[1731683733563,22.0196146,209.27,209.21,22.0196146]
[1731683733742,22.0196146,209.28,209.21,22.0196146]
[1731683733943,22.0196146,209.25,209.19,11.9508]
[1731683734144,22.0196146,209.22,209.15,22.0196146]
[1731683734339,22.0196146,209.22,209.16,22.0196146]
[1731683734542,22.0196146,209.22,209.14,16.7346]
[1731683734543,22.0196146,209.26,209.19,22.0196146]
[1731683734756,22.0196146,209.28,209.14,40.642]
[1731683734956,0.25098,209.28,209.19,22.0196146]
[1731683735164,22.0196146,209.27,209.21,22.0196146]
[1731683735342,22.0196146,209.28,209.21,26.7994146]
[1731683738058,22.0196146,209.31,209.25,22.0196146]
[1731683738258,22.0196146,209.31,209.24,22.0196146]
[1731683738478,0.12549,209.31,209.26,22.0196146]
[1731683738768,22.2705946,209.31,209.24,22.0196146]
[1731683738946,22.0196146,209.26,209.18,4.7804]
[1731683739149,22.0196146,209.25,209.19,22.0196146]
[1731683739348,22.0196146,209.26,209.2,22.0196146]
[1731683739672,22.0196146,209.21,209.15,22.0196146]
[1731683739847,22.0196146,209.21,209.14,22.0196146]
[1731683740047,2.3883,209.35,209.2,22.0196146]
[1731683740262,22.0196146,209.3,209.23,22.0196146]
[1731683740467,0.1,209.28,209.14,11.9536]
[1731683740655,0.1,209.29,209.12,26.8015146]
[1731683740656,22.0196146,209.19,209.12,26.8015146]
[1731683740847,22.0196146,209.26,209.18,22.0196146]
[1731683741045,0.1,209.32,209.12,4.7819]
[1731683741374,0.1,209.28,209.15,22.0196146]
[1731683741576,22.0196146,209.2,209.14,22.0196146]
[1731683741756,22.0196146,209.21,209.14,22.0196146]
[1731683742076,22.0196146,209.2,209.14,22.0196146]
[1731683742280,22.0196146,209.25,209.18,22.0196146]
[1731683742577,22.2705946,209.26,209.19,22.0196146]
[1731683742778,22.2705946,209.26,209.1,22.0196146]
[1731683742779,0.25098,209.26,209.2,22.0196146]
[1731683742980,22.0196146,209.25,209.19,22.0196146]
[1731683743550,2.3894,209.25,209.19,22.0196146]
[1731683743751,0.09367462,209.29,209.11,0.1]
[1731683743752,22.0196146,209.27,209.2,22.0196146]
[1731683743967,24.4089146,209.27,209.2,22.0196146]
[1731683744164,0.09367462,209.28,209.22,22.0196146]
[1731683744472,2.3885,209.34,209.27,22.0196146]
[1731683744676,0.4742686,209.36,209.3,22.0196146]
[1731683745067,0.4742686,209.36,209.33,22.0196146]
[1731683745370,22.0196146,209.34,209.26,22.0196146]
[1731683745577,22.0196146,209.33,209.26,22.0196146]
[1731683745766,24.4080146,209.34,209.27,22.0196146]
[1731683745971,22.0196146,209.33,209.26,4.7786]
[1731683746272,22.0196146,209.29,209.22,33.9686146]
[1731683746470,22.0196146,209.29,209.22,38.7482146]
[1731683747075,22.0196146,209.3,209.23,22.0196146]
[1731683747458,0.21916462,209.35,209.26,22.0196146]
[1731683747664,24.4082146,209.33,209.27,22.0196146]
[1731683747862,2.3886,209.33,209.27,22.0196146]
[1731683748257,0.4742686,209.36,209.31,22.0196146]
[1731683748457,0.4742686,209.36,209.3,22.0196146]
[1731683748762,22.4938832,209.36,209.29,22.0196146]
[1731683749154,0.4742686,209.36,209.31,22.0196146]
[1731683749348,0.4742686,209.36,209.22,20.0]
[1731683749349,22.0196146,209.35,209.29,4.7778]
[1731683749563,22.0196146,209.33,209.26,22.0196146]
[1731683749771,22.0196146,209.31,209.24,26.7986146]
[1731683750273,22.0196146,209.3,209.24,4.779]
[1731683750476,22.0196146,209.29,209.23,33.9677146]
[1731683750682,22.0196146,209.3,209.23,33.9677146]
[1731683751183,22.0196146,209.31,209.24,22.0196146]
[1731683751364,24.4083146,209.32,209.25,22.0196146]
[1731683751765,0.09367462,209.35,209.27,22.0196146]
[1731683751766,22.0196146,209.33,209.27,22.0196146]
[1731683751983,2.3885,209.34,209.29,22.0196146]
[1731683752283,22.0196146,209.34,209.27,22.0196146]
[1731683752480,22.0196146,209.33,209.26,22.0196146]
[1731683752862,0.09367462,209.34,209.2,22.0196146]
[1731683752863,22.0196146,209.3,209.23,22.0196146]
[1731683753189,22.0196146,209.31,209.24,22.0196146]
[1731683753363,24.4084146,209.31,209.24,22.0196146]
[1731683753571,24.4084146,209.31,209.25,22.0196146]
[1731683753963,22.0196146,209.34,209.28,22.0196146]
[1731683754162,22.0196146,209.33,209.26,22.0196146]
[1731683754386,22.0196146,209.32,209.25,22.0196146]
[1731683754580,22.0196146,209.31,209.24,22.0196146]
[1731683755080,2.3888,209.31,209.25,22.0196146]
[1731683755658,2.3885,209.33,209.27,22.0196146]
[1731683755874,2.3885,209.33,209.28,22.0196146]
[1731683756264,2.3885,209.33,209.27,22.0196146]
[1731683756462,2.3885,209.33,209.28,22.0196146]
[1731683756680,22.0196146,209.31,209.24,33.9670146]
[1731683756990,22.0196146,209.32,209.25,22.0196146]
[1731683757190,22.0196146,209.3,209.23,22.0196146]
[1731683757369,2.3885,209.33,209.19,11.9503]
[1731683757370,22.0196146,209.29,209.22,22.0196146]
[1731683757567,22.0196146,209.26,209.19,22.0196146]
[1731683757772,22.0196146,209.25,209.18,22.0196146]
[1731683757984,22.0196146,209.21,209.15,11.9529]
[1731683758171,22.0196146,209.2,209.15,11.9529]
[1731683758364,22.1451046,209.22,209.15,38.7537146]
[1731683758778,24.5350046,209.22,209.15,38.7537146]
[1731683759167,22.0196146,209.2,209.14,22.0196146]
[1731683759367,22.0196146,209.17,209.1,33.9750146]
[1731683759788,22.0196146,209.2,209.14,22.0196146]
[1731683759986,22.0196146,209.2,209.13,22.0196146]
[1731683760187,22.0196146,209.17,209.1,22.0196146]
[1731683760380,22.0196146,209.13,209.06,22.0196146]
[1731683760578,22.0196146,209.12,209.06,22.0196146]
[1731683760776,22.0196146,209.14,209.08,22.0196146]
[1731683760983,34.2133146,209.16,209.09,22.0196146]
[1731683761173,34.2133146,209.16,209.06,11.9582]
[1731683761174,22.0196146,209.13,209.06,22.0196146]
[1731683761371,22.0196146,209.15,209.08,22.0196146]
[1731683761588,22.0196146,209.18,209.11,22.0196146]
[1731683761811,22.0196146,209.16,209.02,40.7658]
[1731683761996,2.3901,209.19,209.02,16.7447]
[1731683761997,0.25098,209.18,209.02,16.7447]
[1731683762294,22.0196146,209.07,209.02,11.9605]
[1731683762805,22.0196146,209.06,209.0,22.0196146]
[1731683763086,22.0196146,209.04,208.97,33.9826146]
[1731683763295,22.0196146,209.05,208.99,22.0196146]
[1731683763486,22.0196146,209.06,209.0,22.0196146]
[1731683763683,22.0196146,209.05,208.99,22.0196146]
[1731683763887,22.0196146,209.03,208.96,22.0196146]
[1731683764475,22.0196146,209.05,208.99,22.0196146]
[1731683764889,22.0196146,209.05,208.98,22.0196146]
[1731683765198,22.0196146,209.09,209.02,22.0196146]
[1731683765495,22.0196146,209.08,209.01,22.0196146]
[1731683765906,22.0196146,209.03,208.96,33.9836146]
[1731683766116,22.0196146,208.99,208.92,22.0196146]
[1731683766317,22.0196146,208.96,208.92,11.9663]
[1731683766687,13.286,209.0,208.88,4.7874]
[1731683767021,22.0196146,208.9,208.84,4.7882]
[1731683767220,2.3925,208.98,208.84,4.7882]
[1731683767221,22.0196146,208.91,208.84,38.7786146]
[1731683767514,2.3925,208.98,208.86,22.0196146]
[1731683767515,22.0196146,208.92,208.86,22.0196146]
[1731683767689,2.3925,208.98,208.83,32.0687]
[1731683767690,22.0196146,208.9,208.83,32.0687]
[1731683767898,22.0196146,208.88,208.83,32.0687]
[1731683768208,22.0196146,208.84,208.83,32.0687]
[1731683768888,22.0196146,208.86,208.83,32.0687]
[1731683769090,22.0196146,208.85,208.83,32.0687]
[1731683769598,22.0196146,208.84,208.83,32.0687]
[1731683770012,22.1451046,208.84,208.83,32.0687]
[1731683770196,22.1451046,208.84,208.63,0.5742686]
[1731683770197,0.12549,208.83,208.72,4.7909]
[1731683770396,22.0196146,208.77,208.72,4.7909]
[1731683770628,22.0196146,208.78,208.72,4.7909]
[1731683770797,22.0196146,208.79,208.72,26.8105146]
[1731683770995,22.0196146,208.79,208.72,22.0196146]
[1731683771504,22.0196146,208.77,208.71,22.0196146]
[1731683772299,22.0196146,208.82,208.75,22.0196146]
[1731683772704,22.0196146,208.82,208.7,38.7899146]
[1731683772705,22.0196146,208.79,208.72,22.0196146]